bitfinex/quotes_SOLUSD_20251006
["timestamp","ask_amount","ask_price","bid_price","bid_amount"]
[1759734518183,16.46665052,233.59,233.58,30.44]
[1759734520016,31.45016865,233.59,233.55,30.44]
[1759734520206,15.77665052,233.57,233.55,30.44]
[1759734520505,16.46665052,233.57,233.55,30.44]
[1759734520993,11.56647521,233.57,233.55,30.44]
[1759734521299,10.6997646,233.65,233.55,30.44]
[1759734521505,10.87647521,233.59,233.55,30.44]
[1759734521693,10.87647521,233.57,233.55,30.44]
[1759734522082,11.56647521,233.57,233.55,30.44]
[1759734522486,4.28155506,233.56,233.55,30.44]
[1759734522793,10.87647521,233.59,233.55,30.44]
[1759734523098,10.87647521,233.6,233.55,31.11]
[1759734523295,10.87647521,233.6,233.56,0.67]
[1759734523884,16.29106638,233.63,233.56,0.67]
[1759734524085,10.87647521,233.62,233.57,0.67]
[1759734524484,10.87647521,233.62,233.58,0.67]
[1759734524694,4.28063867,233.61,233.59,30.44]
[1759734524891,4.28029967,233.63,233.59,30.44]
[1759734525091,4.28029967,233.63,233.59,31.11]
[1759734525813,4.28029967,233.63,233.59,30.44]
[1759734526312,4.28029967,233.63,233.6,0.67]
[1759734526519,4.28029967,233.63,233.59,30.44]
[1759734526815,15.15638105,233.65,233.59,31.11]
[1759734528813,15.15638105,233.65,233.59,30.44]
[1759734529624,30.75632096,233.65,233.59,30.44]
[1759734529826,15.77665052,233.61,233.59,30.44]
[1759734529992,4.97082191,233.6,233.59,30.44]
[1759734530509,15.77665052,233.61,233.59,30.44]
[1759734530510,4.28065521,233.61,233.59,30.44]
[1759734530718,15.15692047,233.63,233.59,30.44]
[1759734531018,4.28008902,233.64,233.6,0.7]
[1759734531428,4.97008902,233.64,233.59,30.44]
[1759734534319,10.87647521,233.65,233.59,31.14]
[1759734537119,14.98031158,233.64,233.59,30.44]
[1759734537312,15.67031158,233.64,233.59,30.44]
[1759734538021,16.46665052,233.63,233.59,30.44]
[1759734538208,4.90017531,233.61,233.59,30.44]
[1759734538410,5.59017531,233.6,233.52,0.7]
[1759734538728,0.69,233.6,233.56,20.8]
[1759734538906,0.69,233.59,233.56,20.8]
[1759734539231,4.28118845,233.58,233.56,20.8]
[1759734540627,12.78119597,233.6,233.57,30.36]
[1759734540628,4.28099694,233.6,233.57,30.36]
[1759734541804,4.97099694,233.6,233.57,30.36]
[1759734542342,4.28099694,233.6,233.57,30.36]
[1759734542620,4.28062546,233.62,233.58,0.7]
[1759734542823,4.28062546,233.62,233.59,0.7]
[1759734543014,4.28062546,233.62,233.6,0.7]
[1759734543214,4.28062546,233.62,233.57,31.06]
[1759734543415,14.98065345,233.64,233.58,0.7]
[1759734543602,4.28008902,233.64,233.58,0.7]
[1759734546425,14.98031158,233.64,233.58,0.7]
[1759734546614,15.67031158,233.64,233.57,30.36]
[1759734546812,14.98031158,233.64,233.57,30.36]
[1759734547011,0.69,233.63,233.57,30.36]
[1759734547230,2.76911369,233.62,233.57,30.36]
[1759734547414,2.07911369,233.6,233.52,20.8]
[1759734547735,2.76911369,233.59,233.56,20.8]
[1759734547928,0.69,233.58,233.56,20.8]
[1759734548126,2.76911369,233.57,233.53,30.34]
[1759734548520,0.69,233.57,233.53,30.34]
[1759734549004,4.28155506,233.56,233.53,30.34]
[1759734549422,4.28118845,233.58,233.53,30.34]
[1759734549614,4.28118845,233.58,233.53,31.04]
[1759734550020,4.28118845,233.58,233.54,0.7]
[1759734550719,4.28118845,233.58,233.53,30.34]
[1759734551021,4.28118845,233.58,233.53,31.04]
[1759734551220,15.15748039,233.59,233.53,31.04]
[1759734551415,4.28100518,233.59,233.53,31.04]
[1759734552237,79.1,233.66,233.56,20.8]
[1759734552238,0.69,233.63,233.56,20.8]
[1759734552420,15.84707387,233.62,233.57,30.32]
[1759734552616,10.87647521,233.6,233.57,30.32]
[1759734552817,11.56647521,233.6,233.57,30.32]
[1759734553212,4.28100518,233.59,233.57,30.32]
[1759734555937,4.28082191,233.6,233.57,30.32]
[1759734556238,10.87647521,233.63,233.58,0.7]
[1759734556420,10.87647521,233.63,233.59,0.7]
[1759734556733,0.69,233.62,233.57,30.32]
[1759734556917,0.69,233.61,233.57,30.32]
[1759734557113,10.87647521,233.6,233.53,0.7]
[1759734557329,0.69,233.59,233.53,0.7]
[1759734557512,0.69,233.59,233.54,30.3]
[1759734557948,4.28100518,233.59,233.54,31.01]
[1759734558940,4.28082191,233.6,233.54,31.01]
[1759734560124,4.28082191,233.6,233.54,35.29186467]
[1759734561532,4.28082191,233.6,233.55,4.99173718]
[1759734561748,4.28082191,233.6,233.56,0.71]
[1759734562335,4.28082191,233.6,233.57,20.8]
[1759734562546,4.28082191,233.6,233.58,30.28]
[1759734563721,4.99063877,233.61,233.58,30.28]
[1759734564213,4.28063877,233.61,233.58,30.28]
[1759734564645,4.99063877,233.61,233.58,30.28]
[1759734565023,0.71,233.6,233.58,30.28]
[1759734565319,0.71,233.59,233.58,30.28]
[1759734565834,4.99100518,233.59,233.58,30.28]
[1759734567344,15.86748039,233.59,233.58,30.28]
[1759734567844,15.15748039,233.59,233.58,30.28]
[1759734568014,4.28100518,233.59,233.58,30.28]
[1759734569429,4.28047858,233.62,233.58,30.99]
[1759734569741,10.87647521,233.67,233.59,0.71]
[1759734570851,10.87647521,233.67,233.61,20.8]
[1759734571025,10.87647521,233.67,233.62,30.26]
[1759734571224,10.87647521,233.67,233.62,30.97]
[1759734571449,4.27972267,233.66,233.62,30.97]
[1759734573118,14.97787632,233.68,233.62,30.97]
[1759734573747,0.71,233.69,233.62,34.54044769]
[1759734573921,15.15528227,233.71,233.63,0.68]
[1759734575218,15.15528227,233.71,233.64,4.28008902]
[1759734575420,15.15528227,233.71,233.65,0.68]
[1759734575620,15.15528227,233.71,233.66,30.26]
[1759734575821,11.55647521,233.71,233.66,30.26]
[1759734576027,4.27844093,233.73,233.66,30.94]
[1759734576339,4.95844093,233.73,233.66,30.94]
[1759734576727,4.95844093,233.73,233.66,30.26]
[1759734576927,4.95844093,233.73,233.67,0.68]
[1759734577228,10.87647521,233.72,233.66,30.26]
[1759734577434,0.68,233.71,233.66,30.26]
[1759734577623,0.68,233.7,233.66,30.26]
[1759734577825,4.27844093,233.73,233.66,30.26]
[1759734578032,4.95844093,233.73,233.66,30.94]
[1759734579156,4.95844093,233.73,233.66,35.21967937]
[1759734579949,4.95844093,233.73,233.66,30.94]
[1759734582846,0.68,233.72,233.66,30.94]
[1759734584256,4.27880706,233.71,233.66,30.94]
[1759734584547,4.27849467,233.73,233.67,0.68]
[1759734586633,4.27849467,233.73,233.67,4.95952099]
[1759734586840,4.27849467,233.73,233.68,0.68]
[1759734587241,4.95849467,233.73,233.68,0.68]
[1759734588056,4.27849467,233.73,233.66,30.26]
[1759734588235,4.99849467,233.73,233.66,30.94]
[1759734588438,4.99849467,233.73,233.66,35.21972177]
[1759734589142,16.30393355,233.73,233.66,30.26]
[1759734589344,0.72,233.72,233.66,30.26]
[1759734589664,0.72,233.71,233.66,30.26]
[1759734589842,16.30393355,233.73,233.66,30.26]
[1759734589843,0.72,233.7,233.66,30.26]
[1759734591341,4.27895414,233.71,233.66,30.94]
[1759734592370,4.27862399,233.72,233.66,30.26]
[1759734592572,4.27862399,233.72,233.66,30.94]
[1759734592866,15.69518397,233.72,233.66,30.26]
[1759734593079,0.72,233.71,233.66,30.26]
[1759734593253,0.72,233.7,233.66,30.26]
[1759734593451,14.97518397,233.72,233.66,30.94]
[1759734593770,14.97518397,233.72,233.67,0.68]
[1759734594078,4.99862399,233.72,233.67,0.68]
[1759734594251,0.72,233.71,233.66,30.26]
[1759734594454,4.99898482,233.71,233.66,30.94]
[1759734594854,4.27898482,233.71,233.66,30.26]
[1759734595184,4.27898482,233.71,233.67,0.68]
[1759734595758,0.72,233.7,233.66,30.26]
[1759734596472,4.27917326,233.69,233.68,20.8]
[1759734597076,4.99917326,233.69,233.68,20.8]
[1759734597612,4.27893486,233.71,233.68,20.8]
[1759734597757,4.27893486,233.71,233.69,30.18]
[1759734598276,4.99893486,233.71,233.69,30.18]
[1759734599291,4.27893486,233.71,233.69,30.18]
[1759734599491,0.72,233.7,233.69,30.18]
[1759734600463,4.27854128,233.73,233.69,30.18]
[1759734600872,4.99854128,233.73,233.69,30.18]
[1759734601503,0.72,233.72,233.69,30.18]
[1759734601664,0.72,233.71,233.69,30.18]
[1759734602610,14.97464362,233.73,233.69,30.18]
[1759734602770,0.72,233.72,233.69,30.18]
[1759734602964,4.27880706,233.71,233.69,30.18]
[1759734603495,4.27880706,233.71,233.68,20.8]
[1759734603662,4.27880706,233.71,233.65,4.95983328]
[1759734604288,4.27880706,233.71,233.66,0.68]
[1759734604462,12.79736808,233.74,233.66,0.68]
[1759734604463,17.07574897,233.74,233.66,0.68]
[1759734604663,4.27838089,233.74,233.67,30.18]
[1759734604972,4.27838089,233.74,233.68,0.68]
[1759734605167,4.99838089,233.74,233.68,0.68]
[1759734605361,4.27798929,233.76,233.68,0.68]
[1759734605561,4.99798929,233.76,233.7,20.8]
[1759734605757,0.72,233.75,233.71,30.18]
[1759734605984,0.72,233.74,233.71,30.18]
[1759734606184,15.69271892,233.76,233.71,30.18]
[1759734606490,0.72,233.75,233.71,30.18]
[1759734607277,4.27825789,233.74,233.71,30.18]
[1759734608395,4.27809675,233.75,233.71,30.18]
[1759734608597,4.99809675,233.75,233.71,30.18]
[1759734609294,4.27809675,233.75,233.71,30.18]
[1759734609592,4.27809675,233.75,233.72,0.68]
[1759734609784,13.01204568,233.76,233.72,0.68]
[1759734609988,4.2777175,233.77,233.72,0.68]
[1759734610179,17.3020384,233.77,233.72,0.68]
[1759734610381,4.2777175,233.77,233.73,0.68]
[1759734610586,4.2777175,233.77,233.74,30.18]
[1759734610891,4.9977175,233.77,233.74,30.18]
[1759734613181,11.41366913,233.79,233.74,30.18]
[1759734613382,11.41366913,233.79,233.74,30.86]
[1759734614706,15.69101204,233.79,233.74,30.86]
[1759734614912,11.41366913,233.78,233.74,30.86]
[1759734615080,12.13366913,233.78,233.74,30.18]
[1759734615286,0.72,233.77,233.74,30.18]
[1759734616178,0.72,233.76,233.74,30.18]
[1759734616403,0.72,233.75,233.74,30.18]
[1759734616908,15.69198099,233.77,233.74,30.18]
[1759734617098,0.72,233.76,233.74,30.18]
[1759734617304,4.27807486,233.75,233.74,30.18]
[1759734618495,4.97807486,233.75,233.74,30.18]
[1759734618698,17.81641871,233.75,233.74,30.18]
[1759734620690,4.97807486,233.75,233.74,30.18]
[1759734622715,4.97807486,233.75,233.73,30.16]
[1759734622716,10.87647521,233.74,233.73,30.16]
[1759734622895,11.57647521,233.74,233.73,30.16]
[1759734624007,28.69472539,233.74,233.73,30.16]
[1759734624201,27.99472539,233.74,233.73,30.16]
[1759734626603,28.69472539,233.74,233.73,30.16]
[1759734627619,27.99472539,233.74,233.73,30.16]
[1759734628017,17.11825018,233.74,233.73,30.16]
[1759734628328,4.27825789,233.74,233.73,30.16]
[1759734628498,17.11715117,233.74,233.73,30.16]
[1759734628817,4.27825789,233.74,233.73,30.16]
[1759734631994,4.27807486,233.75,233.73,30.16]
[1759734632994,4.97807486,233.75,233.73,30.16]
[1759734633200,17.81696814,233.75,233.73,30.16]
[1759734634127,17.11696814,233.75,233.73,30.16]
[1759734634715,4.27807486,233.75,233.73,30.16]
[1759734634912,12.83889328,233.75,233.73,30.16]
[1759734635512,13.52889328,233.75,233.73,30.16]
[1759734637026,25.85037783,233.74,233.68,3.59307646]
[1759734637229,15.1547331,233.74,233.69,30.16]
[1759734637411,4.67752307,233.73,233.69,30.16]
[1759734637608,4.67752307,233.73,233.69,30.82]
[1759734638410,4.27862399,233.72,233.69,30.82]
[1759734639421,8.9559852,233.73,233.69,30.16]
[1759734639722,8.9559852,233.73,233.7,0.66]
[1759734639723,4.27846213,233.73,233.7,0.66]
[1759734639904,4.27846213,233.73,233.71,0.66]
[1759734640105,4.27828071,233.74,233.71,0.66]
[1759734640511,4.27828071,233.74,233.69,30.16]
[1759734640710,4.27828071,233.74,233.7,0.66]
[1759734641614,4.27828071,233.74,233.69,30.16]
[1759734641815,4.27828071,233.74,233.69,30.82]
[1759734642336,4.96828071,233.74,233.69,30.82]
[1759734642639,17.70314671,233.74,233.69,30.82]
[1759734642829,17.70314671,233.74,233.69,30.16]
[1759734643039,17.70314671,233.74,233.69,30.82]
[1759734645340,17.01314671,233.74,233.7,0.66]
[1759734645517,17.70314671,233.74,233.69,30.16]
[1759734645718,17.70314671,233.74,233.69,30.82]
[1759734646624,17.01314671,233.74,233.7,0.66]
[1759734647230,17.70314671,233.74,233.7,0.66]
[1759734647444,17.70314671,233.74,233.69,30.16]
[1759734647734,17.01314671,233.74,233.7,0.66]
[1759734648123,10.69483071,233.76,233.7,0.66]
[1759734648430,12.83889328,233.74,233.69,30.16]
[1759734648621,0.69,233.75,233.7,0.67]
[1759734648813,13.52889328,233.75,233.69,34.4391721]
[1759734649018,13.52889328,233.75,233.7,0.67]
[1759734649724,4.27825789,233.74,233.7,0.67]
[1759734650437,17.11715117,233.74,233.7,0.67]
[1759734651241,12.83889328,233.74,233.69,34.4391721]
[1759734651535,0.69,233.77,233.71,0.67]
[1759734651744,12.83779446,233.75,233.71,0.67]
[1759734651919,13.52779446,233.75,233.69,35.1091721]
[1759734653141,4.27825789,233.74,233.69,30.83]
[1759734653523,4.96825789,233.74,233.69,30.83]
[1759734657035,4.96825789,233.74,233.69,30.16]
[1759734657036,0.69,233.73,233.69,30.16]
[1759734657217,4.27825789,233.74,233.69,30.83]
[1759734657617,4.96825789,233.74,233.69,30.83]
[1759734661440,0.69,233.73,233.69,30.83]
[1759734661645,4.27825789,233.74,233.69,30.83]
[1759734662033,4.96825789,233.74,233.69,30.83]
[1759734664853,4.96825789,233.74,233.68,4.27933876]
[1759734664854,0.69,233.73,233.67,20.8]
[1759734665155,0.69,233.73,233.64,4.67752307]
[1759734665156,12.95231507,233.71,233.68,30.14]
[1759734665323,12.95231507,233.69,233.68,30.14]
[1759734665521,10.87647521,233.68,233.58,4.67752307]
[1759734665724,2.07583986,233.62,233.58,4.67752307]
[1759734665947,4.28082191,233.6,233.56,58.81752307]
[1759734666247,0.69,233.59,233.56,33.34]
[1759734666456,0.69,233.58,233.56,33.34]
[1759734666648,0.69,233.57,233.53,20.8]
[1759734666844,0.69,233.57,233.56,20.8]
[1759734667044,12.84824086,233.58,233.56,21.47]
[1759734667253,12.84824086,233.58,233.57,30.14]
[1759734667452,4.97082191,233.6,233.57,30.14]
[1759734667754,0.69,233.58,233.57,30.14]
[1759734668166,15.84766366,233.58,233.57,30.14]
[1759734668344,17.92350352,233.58,233.57,30.14]
[1759734668965,24.32784984,233.58,233.57,30.14]
[1759734669127,28.60903829,233.58,233.57,30.14]
[1759734670652,12.76137463,233.58,233.57,30.14]
[1759734670956,4.2810226,233.59,233.57,30.14]
[1759734671154,17.12816304,233.59,233.57,30.14]
[1759734671360,4.2810226,233.59,233.57,30.14]
[1759734671547,0.69,233.58,233.57,30.14]
[1759734672248,13.84948535,233.58,233.57,30.14]
[1759734672632,18.1306738,233.58,233.57,30.14]
[1759734672856,29.00714901,233.58,233.57,30.14]
[1759734673365,24.03596056,233.58,233.57,30.14]
[1759734673541,13.84948535,233.58,233.57,30.14]
[1759734673749,17.4406738,233.58,233.57,30.14]
[1759734674362,17.12869133,233.6,233.57,30.14]
[1759734674774,0.69,233.59,233.52,0.67]
[1759734674936,0.69,233.59,233.53,30.14]
[1759734676844,4.28118845,233.58,233.53,30.14]
[1759734677040,4.97118845,233.58,233.53,30.14]
[1759734677244,13.64231507,233.57,233.49,0.2]
[1759734677451,2.07583986,233.56,233.5,30.14]
[1759734677763,0.69,233.55,233.5,30.14]
[1759734677968,0.7,233.54,233.5,50.94]
[1759734678341,0.7,233.53,233.52,20.8]
[1759734678541,0.7,233.53,233.5,30.14]
[1759734678741,4.28247184,233.51,233.5,30.14]
[1759734679153,4.98247184,233.51,233.5,30.14]
[1759734683241,17.93478691,233.51,233.5,30.14]
[1759734683682,15.85894705,233.51,233.5,30.14]
[1759734684575,10.87647521,233.5,233.49,0.2]
[1759734684874,2.07583986,233.5,233.49,0.2]
[1759734685046,2.77583986,233.5,233.49,0.2]
[1759734685369,8.77254819,233.5,233.49,0.2]
[1759734687057,17.57318354,233.5,233.49,0.2]
[1759734689066,19.6490234,233.5,233.49,0.2]
[1759734690671,19.6490234,233.5,233.49,1e-08]
[1759734691047,51.76893774,233.5,233.43,0.242873]
[1759734691276,12.95231507,233.44,233.43,1e-08]
[1759734691574,13.65231507,233.44,233.43,1e-08]
[1759734691759,15.36688246,233.44,233.43,1e-08]
[1759734691956,12.5910426,233.44,233.43,1e-08]
[1759734692143,13.2910426,233.44,233.43,1e-08]
[1759734692348,13.2910426,233.44,233.41,1e-08]
[1759734692349,10.87647521,233.43,233.41,1e-08]
[1759734692544,17.23643811,233.42,233.41,1e-08]
[1759734692751,17.93643811,233.42,233.41,1e-08]
[1759734693667,15.86059825,233.42,233.41,1e-08]
[1759734693857,17.93643811,233.42,233.41,1e-08]
[1759734694057,15.16059825,233.42,233.41,1e-08]
[1759734695180,16.87501866,233.42,233.41,1e-08]
[1759734696053,17.52501866,233.42,233.41,1e-08]
[1759734696265,18.85747856,233.42,233.41,1e-08]
[1759734698981,10.87647521,233.41,233.39,0.2]
[1759734699156,29.56778616,233.42,233.39,0.2]
[1759734699157,12.20893511,233.4,233.39,0.2]
[1759734699357,12.85893511,233.4,233.39,0.2]
[1759734700176,17.14342525,233.4,233.39,0.2]
[1759734701856,27.25878338,233.4,233.39,0.2]
[1759734702076,26.60878338,233.4,233.39,0.2]
[1759734702786,27.25878338,233.4,233.39,0.2]
[1759734706082,10.87647521,233.39,233.34,10.11535813]
[1759734706269,10.87647521,233.37,233.34,10.11535813]
[1759734706799,10.87647521,233.35,233.34,10.11535813]
[1759734707299,10.87647521,233.35,233.34,10.82535813]
[1759734707595,12.86090926,233.37,233.34,10.82535813]
[1759734707775,10.87647521,233.41,233.35,0.71]
[1759734707963,10.87647521,233.38,233.35,0.71]
[1759734708570,10.87647521,233.38,233.34,10.11535813]
[1759734709085,10.87647521,233.36,233.34,40.27535813]
[1759734709677,10.87647521,233.36,233.34,10.11535813]
[1759734710496,12.87893511,233.36,233.34,10.11535813]
[1759734710692,25.07039574,233.36,233.34,10.11535813]
[1759734710875,15.16188339,233.35,233.34,10.11535813]
[1759734711676,27.70830378,233.35,233.34,10.11535813]
[1759734714486,28.37830378,233.35,233.34,10.11535813]
[1759734715600,27.70830378,233.35,233.34,10.11535813]
[1759734716799,40.57086728,233.35,233.34,10.11535813]
[1759734717186,42.57332718,233.35,233.34,10.11535813]
[1759734717504,41.24086728,233.35,233.34,10.11535813]
[1759734718381,40.57086728,233.35,233.34,10.11535813]
[1759734719303,42.57332718,233.35,233.34,10.11535813]
[1759734724994,40.57086728,233.35,233.34,10.11535813]
[1759734726391,40.57086728,233.35,233.34,40.27535813]
[1759734727408,10.87647521,233.38,233.34,40.98535813]
[1759734727713,10.87647521,233.38,233.35,0.71]
[1759734727902,10.87647521,233.38,233.36,0.71]
[1759734728105,23.64364467,233.38,233.36,0.71]
[1759734728405,10.87647521,233.38,233.36,0.71]
[1759734729013,10.87647521,233.39,233.34,40.27535813]
[1759734729196,4.28485731,233.38,233.34,40.27535813]
[1759734729529,14.99700059,233.38,233.34,40.98535813]
[1759734731309,14.99700059,233.38,233.34,40.27535813]
[1759734731512,14.99700059,233.38,233.34,40.98535813]
[1759734731909,14.99700059,233.38,233.35,0.71]
[1759734732508,27.63435185,233.38,233.35,0.71]
[1759734733700,27.63435185,233.38,233.34,40.27535813]
[1759734733907,27.63435185,233.38,233.34,40.98535813]
[1759734734517,10.87647521,233.37,233.34,10.82535813]
[1759734734815,10.87647521,233.37,233.35,30.16]
[1759734737001,4.28522454,233.36,233.35,30.16]
[1759734737609,15.16169975,233.36,233.35,30.16]
[1759734737814,15.85169975,233.36,233.35,30.16]
[1759734738120,15.16169975,233.36,233.35,30.16]
[1759734739203,10.87647521,233.35,233.34,10.11535813]
[1759734739509,10.87647521,233.35,233.34,40.27535813]
[1759734739705,10.87647521,233.35,233.34,10.11535813]
[1759734739904,10.87647521,233.35,233.34,40.27535813]
[1759734740222,4.28522454,233.36,233.34,40.97535813]
[1759734740519,4.28522454,233.36,233.35,0.7]
[1759734741220,4.28504092,233.37,233.35,0.7]
[1759734741406,4.28493327,233.38,233.35,0.7]
[1759734741610,17.21019815,233.38,233.35,0.7]
[1759734741831,4.28476225,233.39,233.35,0.7]
[1759734742523,10.87647521,233.42,233.35,0.7]
[1759734743202,4.28430658,233.41,233.35,0.7]
[1759734744012,16.95730332,233.41,233.35,0.7]
[1759734745018,16.95730332,233.41,233.37,20.8]
[1759734745233,16.95730332,233.41,233.38,30.86]
[1759734746926,16.95730332,233.41,233.38,30.16]
[1759734748418,17.64730332,233.41,233.38,30.16]
[1759734748619,16.95730332,233.41,233.38,30.16]
[1759734749524,16.95730332,233.41,233.38,30.86]
[1759734750533,16.95730332,233.41,233.38,30.16]
[1759734752910,17.64730332,233.41,233.38,30.16]
[1759734753607,10.87647521,233.38,233.34,30.91535813]
[1759734753815,0.69,233.37,233.35,30.14]
[1759734754021,0.69,233.36,233.35,30.14]
[1759734755136,4.97522454,233.36,233.35,30.14]
[1759734756029,4.28522454,233.36,233.35,30.14]
[1759734756742,4.28505467,233.37,233.35,30.14]
[1759734756905,4.28481098,233.39,233.35,30.14]
[1759734757112,4.28449014,233.4,233.36,0.66]
[1759734757318,5.00449014,233.4,233.37,30.14]
[1759734758838,4.28449014,233.4,233.37,30.14]
[1759734759022,4.28449014,233.4,233.37,30.8]
[1759734759213,4.28449014,233.4,233.37,30.14]
[1759734760739,4.28449014,233.4,233.37,30.8]
[1759734761533,4.28449014,233.4,233.37,30.14]
[1759734762531,16.95732278,233.41,233.38,0.66]
[1759734762742,4.28432604,233.41,233.39,30.14]
[1759734763520,4.28412304,233.42,233.39,30.14]
[1759734763742,5.00412304,233.42,233.39,30.14]
[1759734764321,18.0518285,233.42,233.39,30.14]
[1759734764617,11.59647521,233.41,233.39,30.14]
[1759734764824,10.87647521,233.41,233.4,30.14]
[1759734765443,13.67921692,233.41,233.34,30.91535813]
[1759734765737,0.72,233.4,233.35,30.14]
[1759734765939,0.72,233.39,233.35,30.14]
[1759734766145,0.72,233.38,233.35,30.14]
[1759734766846,5.00496685,233.38,233.35,30.14]
[1759734767843,4.28496685,233.38,233.35,30.14]
[1759734768044,0.71,233.37,233.35,30.14]
[1759734768247,4.28496685,233.38,233.35,30.14]
[1759734768625,4.28496685,233.38,233.36,0.66]
[1759734768951,4.28467372,233.39,233.35,30.14]
[1759734769336,4.28467372,233.39,233.35,30.8]
[1759734770750,4.28467372,233.39,233.36,0.66]
[1759734771154,4.28467372,233.39,233.35,30.14]
[1759734771360,4.28467372,233.39,233.35,30.8]
[1759734771562,4.28467372,233.39,233.36,0.66]
[1759734771961,4.28449014,233.4,233.35,30.14]
[1759734772159,25.9058586,233.42,233.37,0.66]
[1759734772343,25.9058586,233.42,233.35,34.42539494]
[1759734772344,13.04770546,233.42,233.38,30.8]
[1759734772537,28.01801677,233.43,233.39,30.8]
[1759734772856,28.01801677,233.43,233.4,30.14]
[1759734773061,28.72801677,233.43,233.4,30.14]
[1759734773556,0.71,233.42,233.4,30.14]
[1759734773932,28.01801677,233.43,233.4,30.14]
[1759734774559,28.72801677,233.43,233.4,30.14]
[1759734776161,41.67364406,233.43,233.4,30.14]
[1759734777948,0.71,233.46,233.41,0.66]
[1759734778455,0.71,233.45,233.4,30.14]
[1759734778660,0.71,233.45,233.4,30.8]
[1759734779464,0.71,233.45,233.41,0.66]
[1759734779964,15.15986422,233.46,233.41,0.66]
[1759734780169,4.99338901,233.46,233.41,0.66]
[1759734780539,4.99347506,233.46,233.41,0.66]
[1759734780743,13.16054615,233.47,233.4,34.42446975]
[1759734780977,12.85539819,233.48,233.43,20.8]
[1759734781145,0.71,233.53,233.47,20.8]
[1759734781356,10.87647521,233.52,233.48,30.12]
[1759734781654,0.71,233.52,233.49,30.12]
[1759734781844,4.28192172,233.54,233.49,30.12]
[1759734782047,12.85154325,233.55,233.49,50.92]
[1759734782263,11.58647521,233.57,233.5,0.66]
[1759734782465,15.86785701,233.57,233.5,0.66]
[1759734782668,15.86785701,233.57,233.49,50.92]
[1759734782864,0.71,233.56,233.49,50.92]
[1759734783052,0.71,233.56,233.49,51.58]
[1759734783368,13.78327722,233.56,233.5,0.66]
[1759734784260,4.28173838,233.55,233.52,20.8]
[1759734784465,4.28173838,233.55,233.53,30.12]
[1759734785652,4.28137175,233.57,233.53,30.12]
[1759734785863,4.99137175,233.57,233.53,30.12]
[1759734786272,4.99169317,233.56,233.53,30.12]
[1759734786471,4.28169317,233.56,233.53,30.12]
[1759734788363,4.28137175,233.57,233.53,30.12]
[1759734788770,4.28137175,233.57,233.53,30.78]
[1759734789468,4.28137175,233.57,233.54,0.66]
[1759734789774,4.28100518,233.59,233.55,0.66]
[1759734789974,4.99082932,233.6,233.56,30.12]
[1759734790161,4.28082932,233.6,233.56,30.78]
[1759734791680,0.2,233.63,233.59,20.8]
[1759734791859,0.2,233.63,233.6,30.76]
[1759734792380,0.2,233.63,233.6,30.1]
[1759734792562,0.2,233.63,233.61,0.66]
[1759734792761,0.2,233.63,233.62,20.8]
[1759734794294,0.91,233.63,233.62,30.1]
[1759734794475,0.91,233.63,233.59,20.8]
[1759734794476,5.19029281,233.63,233.59,20.8]
[1759734794677,0.71,233.62,233.6,30.1]
[1759734794987,4.48029281,233.63,233.6,30.1]
[1759734794988,0.71,233.61,233.6,30.1]
[1759734795458,4.99063867,233.61,233.6,30.1]
[1759734795657,4.99063867,233.61,233.54,0.66]